Cogmind - Beta 17 @@@ ROGUE MODE // 2026.08.17 @ 17:48:22 Player: 4R-ZE3 Result: Destroyed by D-53 Grenadier with Mini Grenade Launcher Performance ------------- Evolutions (0) 0 Regions Visited (2) 400 Robots Destroyed (19) 95 Value Destroyed (448) 448 Prototype IDs (0) 0 Alien Tech Used (0) 0 Bonus (0) 0 TOTAL SCORE: 943 Bonus ------- None Cogmind --------- Core Integrity 0/250 Matter 289/300 Energy 90/100 System Corruption 0% Temperature Cool (0) Movement Core (400) Ox7 Location -10/Mines Parts ------- > --- POWER (1) -------- (None) > --- PROPULSION (2) --- (None) > --- UTILITY (2) ------ Improved Heat Sink Large Storage Unit > --- WEAPON (2) ------- Heavy Assault Rifle > --- INVENTORY (15) --- Ion Engine Wheel Wheel Compact Wheel Targeting Computer Light Armor Plating Hacking Suite Particle Gun Assault Rifle Heavy Assault Rifle Peak State ------------ > --- POWER ------------ Ion Engine > --- PROPULSION ------- Light Treads Light Treads > --- UTILITY ---------- Improved Heat Sink Small Storage Unit > --- WEAPON ----------- Heavy Assault Rifle Heavy Assault Rifle > --- INVENTORY -------- Wheel Wheel Compact Wheel Hacking Suite Particle Gun Light Assault Rifle Heavy Assault Rifle Heavy Assault Rifle [Rating: 12] Favorites ----------- Power Ion Engine Engine Ion Engine Propulsion Light Treads Treads Light Treads Utility Improved Heat Sink Device Improved Heat Sink Storage Small Storage Unit Weapon Heavy Assault Rifle Energy Gun Small Laser Ballistic Gun Heavy Assault Rifle Build | -11 -10 -10 ------- Run | Yrd Mat Min Slots Evolved . | . . . Power . | . . . Propulsion . | . . . Utility . | . . . Weapon . | . . . Parts Attached 13 | 5 7 1 Power 2 | 1 1 . Engine 2 | 1 1 . Core . | . . . Reactor . | . . . Propulsion 2 | 2 . . Treads 2 | 2 . . Leg . | . . . Wheel . | . . . Hover . | . . . Flight . | . . . Utility 5 | 1 4 . Device 3 | . 3 . Storage 2 | 1 1 . Processor . | . . . Hackware . | . . . Protection . | . . . Artifact . | . . . Weapon 4 | 1 2 1 Energy Gun 1 | 1 . . Energy Cannon . | . . . Ballistic Gun 3 | . 2 1 Ballistic Cannon . | . . . Launcher . | . . . Special Weapon . | . . . Impact Weapon . | . . . Slashing Weapon . | . . . Piercing Weapon . | . . . Special Melee Weapon . | . . . Unidentified Prototypes . | . . . Parts Lost 6 | . 1 5 Power 2 | . 1 1 Propulsion 2 | . . 2 Utility . | . . . Weapon 2 | . . 2 Highest Loss Streak 5 | . 1 5 To Critical Strikes . | . . . Average Backups 8 | 1 7 11 Power . | . . 1 Propulsion 2 | 1 2 3 Utility 1 | . . 3 Weapon 3 | . 3 4 Tool/Special . | . . . Unused Backups 11 | . 1 10 Power 1 | . . 1 Propulsion 3 | . . 3 Utility 3 | . . 3 Weapon 4 | . 1 3 Tool/Special . | . . . Average Slot Usage (%) 94 | . 93 98 Engine 13 | . 13 13 Treads 27 | . 28 27 Device 10 | . 9 14 Storage 14 | . 14 14 Ballistic Gun 26 | . 25 27 Peak Build Rating 12 | 5 12 12 Average Rating 10 | 4 10 11 On Entrance 5 | . 5 12 Avg Prop Armor Cover (%) . | . . . Naked Turns . | . . . Heaviest Build 32 | 9 32 32 Greatest Support 40 | 40 40 40 Greatest Overweight (x) . | . . . Average Overweight (x) . | . . . Largest Inventory Capacity 15 | 8 15 15 Average Capacity 10 | 6 8 15 Most Carried 11 | 3 11 11 Average Carried 8 | 1 7 10 Final Capacity 15 | 8 15 15 Final Carried 11 | 3 11 10 Class Distribution -------------------- 100% | Mutant Dominant Class ---------------- Mutant | -10/Materials Mutant | -10/Mines Resources | -11 -10 -10 ----------- Run | Yrd Mat Min Matter Collected 519 | 195 312 12 Remotely . | . . . Salvage Created 544 | . 506 38 Parts 48 | . 43 5 Haulers Intercepted . | . . . Recyclers Shooed . | . . . Parts Field Recycled . | . . . Retrieved Matter . | . . . Parts Self-Destructed . | . . . Prevented . | . . . Parts Restored . | . . . Kills | -11 -10 -10 ------- Run | Yrd Mat Min Combat Hostiles Destroyed 18 | . 15 3 Guns 18 | . 15 3 Classes Destroyed 3 | . 3 . Operator 1 | . 1 . Swarmer 9 | . 6 3 Grunt 9 | . 9 . Best Kill Streak 5 | . 5 3 Combat Bots Only 5 | . 5 3 Max Kills in Single Turn 2 | . 1 2 Gunslinging 1 | . . 1 Exploded . | . . . Melee . | . . . Uniques/NPCs Destroyed . | . . . Combat | -11 -10 -10 -------- Run | Yrd Mat Min Hostile Shots Fired 88 | . 69 19 Missed 15 | . 13 2 Hits 73 | . 56 17 Projectile 73 | . 56 17 AOE 10 | . . 10 Critical Strikes 2 | . 1 1 Damage Taken 1028 | . 588 440 Core 261 | . 122 139 Absorbed by Shields . | . . . Core Remaining (%) 100 | 100 . . Volleys Fired 39 | . 34 5 Largest 2 | . 2 2 Hottest 46 | . 46 46 Shots Fired 71 | . 61 10 Gun 71 | . 61 10 Cannon . | . . . Launcher . | . . . Special . | . . . Kinetic 64 | . 54 10 Thermal 7 | . 7 . Explosive . | . . . Electromagnetic . | . . . Robot Hit Streak 14 | . 8 14 Robot Miss Streak 2 | . 2 2 Penetration Max . | . . . Secondary Targets 1 | . . 1 Max Gunslinging Chain 1 | . . 1 Shots Hit Robots 53 | . 45 8 Core Hits 26 | . 22 4 Critical Kills . | . . . Critical Parts Destroyed . | . . . Critical Strikes . | . . . Melee Attacks . | . . . Impact . | . . . Slashing . | . . . Piercing . | . . . Sneak Attacks . | . . . Combat Hostiles . | . . . Follow-up Attacks . | . . . Damage Inflicted 801 | . 685 116 Guns 801 | . 685 116 Cannons . | . . . Explosions . | . . . Melee . | . . . Ramming . | . . . Kinetic 748 | . 632 116 Thermal 53 | . 53 . Explosive . | . . . Electromagnetic . | . . . Impact . | . . . Slashing . | . . . Piercing . | . . . Highest Corruption . | . . . Average Corruption . | . . . Corruption Purged . | . . . Corruption Blocked . | . . . Overload Shots . | . . . Overflow Damage . | . . . Projectiles . | . . . Explosions . | . . . Melee . | . . . Knockbacks . | . . . Impact . | . . . Kinetic . | . . . Secondary . | . . . Self-Inflicted Damage . | . . . Shots . | . . . Rammed . | . . . Targets Rammed . | . . . Kicked . | . . . Crushed . | . . . Highest Temperature 8 | . 8 . Average Temperature 1 | . 1 . Received Heat Transfer 207 | . 207 . Siege Activations . | . . . Martial Activations . | . . . Shielding Activations . | . . . Robots Disrupted . | . . . Combat Hostiles . | . . . Robots Corrupted . | . . . Combat Hostiles . | . . . Parts Fried . | . . . Impact Corruptions . | . . . Robots Melted . | . . . Combat Hostiles . | . . . Parts Melted . | . . . Heat Transferred 125 | . 125 . Parts Sabotaged . | . . . Parts Stolen . | . . . Parts Stripped . | . . . Power Chain Reactions . | . . . Alert | -11 -10 -10 ------- Run | Yrd Mat Min Maximum Alert Level . | . . . Low Security (%) 100 | 100 100 100 Level 1 . | . . . Level 2 . | . . . Level 3 . | . . . Level 4 . | . . . Level 5 . | . . . High Security . | . . . Max Security . | . . . Peak Influence 121 | . 121 70 Initial 4 | . . 4 Average 43 | . 59 5 Influence Increases 462 | . 392 70 Destroy 0b10 Robot/C 360 | . 300 60 Destroy 0b10 Robot/NC 5 | . 5 . Destroy Leader 70 | . 60 10 Successful Hack 10 | . 10 . Disable Machine 15 | . 15 . Destroy Structure 2 | . 2 . Influence Decreases 452 | . 380 72 Entered New Map 8 | . . 8 Time Decay 384 | . 370 14 Lost Part 60 | . 10 50 Squads Dispatched 2 | . 2 . Investigation 1 | . 1 . Extermination . | . . . Reinforcement 1 | . 1 . Assault . | . . . Garrison . | . . . Intercept . | . . . Searches Triggered . | . . . Construction Impeded . | . . . Haulers Reinforced . | . . . Active Scanning Responses . | . . . Cargo Convoy Interrupts . | . . . Stealth | -11 -10 -10 --------- Run | Yrd Mat Min Distress Signals 4 | . 4 . Communications Jammed . | . . . Distress Signals . | . . . Times Spotted 29 | . 24 5 Peak Tracking Total 5 | . 5 3 Tactical Retreats . | . . . Traps | -11 -10 -10 ------- Run | Yrd Mat Min Traps Triggered 2 | . 2 . Indirectly . | . . . Trap Hack Attempts . | . . . Triggered . | . . . Disarmed . | . . . Reprogrammed . | . . . Reused . | . . . Traps Extracted . | . . . Installed . | . . . Triggered . | . . . Machines | -11 -10 -10 ---------- Run | Yrd Mat Min Machines Disabled 1 | . 1 . Max in Single Turn 1 | . 1 . Machines Repaired . | . . . Machines Dismantled . | . . . Machines Sabotaged . | . . . Overloaded Fab Kills . | . . . Hacking | -11 -10 -10 --------- Run | Yrd Mat Min Machines Accessed 3 | . 3 . Terminals 3 | . 3 . Fabricators . | . . . Repair Stations . | . . . Recycling Units . | . . . Scanalyzers . | . . . Garrison Access . | . . . Total Hacks 9 | . 9 . Successful 4 | . 4 . Failed 4 | . 4 . Catastrophic 2 | . 2 . Database Lockouts 1 | . 1 . Manual 10 | . 10 . Terminals 9 | . 9 . Fabricators . | . . . Repair Stations . | . . . Recycling Units . | . . . Scanalyzers . | . . . Garrison Access . | . . . Terminal Hacks 1 | . 1 . Robot Analysis 1 | . 1 . Fabricator Hacks . | . . . Repair Station Hacks . | . . . Recycling Unit Hacks . | . . . Scanalyzer . | . . . Garrison Access Hacks . | . . . Unauthorized Hacks 3 | . 3 . Terminals 3 | . 3 . Botnet 3 | . 3 . Fabricators . | . . . Repair Stations . | . . . Recycling Units . | . . . Scanalyzers . | . . . Garrison Access . | . . . Data Cores Recovered . | . . . Used . | . . . Hacking Detections 2 | . 2 . Full Trace Events . | . . . Feedback Events . | . . . Feedback Blocked . | . . . Robot Schematics Acquired . | . . . Robots Built . | . . . Authchips . | . . . Time . | . . . Total Robot Build Rating . | . . . Part Schematics Acquired . | . . . Parts Built . | . . . Authchips . | . . . Time . | . . . Total Part Build Rating . | . . . Part Studies Acquired . | . . . Parts Repaired . | . . . Time . | . . . Parts Recycled . | . . . Recycled Matter . | . . . Retrieved Matter . | . . . Retrieved Components . | . . . Parts Scanalyzed . | . . . Part Schematics Acquired . | . . . Parts Damaged . | . . . Bothacking | -11 -10 -10 ------------ Run | Yrd Mat Min Used RIF Installer . | . . . Robots Hacked . | . . . Non-combat . | . . . Combat . | . . . Robot Hacks Applied . | . . . Relay Couplers Released . | . . . Fabnet Peak Effective % . | . . . Robots Rewired . | . . . Allies Hacked . | . . . Hacks Repelled . | . . . Allies | -11 -10 -10 -------- Run | Yrd Mat Min Total Allies . | . . . Largest Group . | . . . Highest-Rated Group . | . . . Highest-Rated Ally . | . . . Total Orders . | . . . Ally Attacks . | . . . Total Damage . | . . . Kills . | . . . Allies Corrupted . | . . . Allies Melted . | . . . Intel | -11 -10 -10 ------- Run | Yrd Mat Min Active Infowar (turns) . | . . . Robot Analysis Total 1 | . 1 . Derelict Logs Recovered 1 | . . 1 Drone Launches . | . . . Drone Recoveries . | . . . Exploration | -11 -10 -10 ------------- Run | Yrd Mat Min Turns Passed 1272 | 61 897 314 Spaces Moved 671 | 35 467 169 Core 4 | 4 . . Treads 667 | 31 467 169 Legs . | . . . Wheels . | . . . Hover . | . . . Flight . | . . . Fastest Speed 50 | 50 160 160 Average Speed 159 | 147 160 160 Slowest Speed 160 | 160 160 160 Overloaded Moves . | . . . Propulsion Burnouts . | . . . Robots Hopped . | . . . Potential Cave-ins . | . . . Cave-ins Triggered . | . . . Exploration Rate (%) 40 | 4 79 37 Regions Visited 2 Branch Regions 1 Pre-discovered Areas . | . . . Known Exits Taken . | . . . Unknown Exits Taken 2 | 1 1 . Scrap Searched 1 | . . 1 Spaces Dug . | . . . Terrain Destroyed . | . . . Melee . | . . . Projectile . | . . . AOE . | . . . Terrain Rammed . | . . . Walls Destroyed . | . . . Machines Disabled . | . . . Actions | -11 -10 -10 --------- Run | Yrd Mat Min Total 800 | 42 555 203 Wait 58 | . 30 28 Move 669 | 34 466 169 Hop . | . . . Pick Up 13 | 3 10 . Fast Attach 11 | 5 6 . Attach 2 | . 1 1 Detach . | . . . Swap 3 | . 3 . Drop 5 | . 5 . Fire 39 | . 34 5 Melee . | . . . Ram . | . . . Kick . | . . . Crush . | . . . Escape Stasis . | . . . Rewire . | . . . Trap . | . . . Miscellaneous . | . . . Route ------- -11/Scrapyard -10/Materials (discovered 3 exits: [*Mat x2] / [*Min]) -10/Mines (discovered 1 exit: [*Mat]) History --------- Turn | Location | Event 38 | -11/Scrapyard | Discovered new exit (range 14) 62 | -11/Scrapyard | Entered Materials 312 | -10/Materials | Build established: Mutant 358 | -10/Materials | Central database locked down 376 | -10/Materials | Discovered new exit (range 15) 414 | -10/Materials | Discovered new exit (range 15) 820 | -10/Materials | Discovered new exit (range 16) 959 | -10/Materials | Entered Mines 1030 | -10/Mines | Learned Materials stockpile data 1060 | -10/Mines | Found a hidden stash of uninstalled traps 1108 | -10/Mines | Discovered new exit (range 12) 1240 | -10/Mines | Assembled infested the area 1245 | -10/Mines | Core integrity fell below 50% 1270 | -10/Mines | Core integrity fell below 20% 1273 | -10/Mines | Destroyed by D-53 Grenadier with Mini Grenade Launcher Last Messages --------------- 01095_ T-07 Excavator is excavating. 01095_ U-05 Engineer builds a Wall. 01099_ T-07 Excavator is excavating. 01099_ U-05 Engineer lays Concrete. 01108_ EXIT=FOUND 01151_ T-07 Excavator is excavating. 01240_ ALERT: Infestation in the mines, dispatching Demolisher response squad. 01243_ S-10 Pest destroyed. 01246_ Switching to secondary target: S-10 Pest. 01246_ S-10 Pest destroyed. 01249_ Acquired 12 matter. 01264_ C-45 Heavy ARC bursts open, deploying its payload. 01264_ D-53 Grenadier unfolds itself. 01264_ T-07 Excavator destroyed. 01265_ Lgt. Treads destroyed. 01268_ T-07 Excavator destroyed. 01269_ Ion Engine destroyed. 01269_ Hvy. Assault Rifle destroyed. Map ----- +----------------------------------------------------+ | #?????????????????????????????????? | | #?????????????????????????????????? | | ## ########## #?????????????????????????????????? | | ?# #??####### #?????????????????????????????????? | | ?# #??# % #????????????######????????????#### | | ## #??# #####[ #????????????# #????????#### # | | ##???????# #????????????# ?????????# #? | | #????#### #????????????# #????????# #? | | ## #????????????# ?????????# ####? | | #### #????????????# ?????????# #???? | | ##?## ##?????#####???#++#?????????# ##### | | ###??# ##????## & ##??# #?????????# # | | ##???## ###### &&&##?# #?????????# # | | ????## """ #?# #??#####??##### # | | #????# """ #?# #?## ###??### # | | ?????# """ ##### #### ### #### < # | | ?????# """ #???## #?# | | ?????## ##????# #?# ###### | | ??????### ##?????# #?# #????## #### # | | ######### ## ##??????# ### #?????####??# ## | | #####??????## ########????## #? | | #?????????## % ### #?????# #? | | ##########????????## dd ## #?????## #? | | ????????????????????# # #??????## ##? | | ????????????????????# # #???????###?? | | ????????????????????# @ """" #???????????? | | ????????????????????# % """" #???????????? | | ????????????????????# # """" #???????????? | | ??????????????????? # #???????????? | | ????????????????? ## """" #???????????? | | ????????????????# ### """" #???????????? | | ????????????????# ## ####?# """" #???????????? | | ????????????????#??## ?????# #???????????? | | ????????????????????### ?????## #??????????????? | | ??????????????????????# #??????? ????????????????? | | ??????????????????????# ???????? ????????????????? | | ??????????????????????# ???????? ????????????????? | | ??????????????????????##???????? ????????????????? | | ???????????????????????????????? ????????????????? | | ???????????????????????????????? ????????????????? | | ???????????????????????????????? ????????????????? | | ?????????????????????????????????????????????????? | | ?????????????????????????????????????????????????? | | ?????????????????????????????????????????????????? | | ?????????????????????????????????????????????????? | | ?????????????????????????????????????????????????? | | ?????????????????????????????????????????????????? | | ?????????????????????????????????????????????????? | | ?????????????????????????????????????????????????? | | ?????????????????????????????????????????????????? | +----------------------------------------------------+ Best States ------------- Heat Dissipation 39 Energy Generation 10 Energy Capacity 250 Matter Stores 300 Matter Capacity 300 Sight Range 16 Terrain Scan Density 10 Evasion (%) 40 Recoil Reduction 2 Item Schematics ----------------- None Robot Schematics ------------------ None Fabricated ------------ Nothing Repaired ---------- Nothing Studied --------- None Alien Tech Used ----------------- None Achievements -------------- None Challenges ------------ None Game ------ Seed CooledTerrabombStatue Manual? 0 Play Time 00:05:44 Cumulative 262.0 hours Start 2026.08.17 @ 17:43:30 End 2026.08.17 @ 17:48:22 Sessions 1 Manual Loads 0 Difficulty Rogue Special Mode None Game No. 256 Rogue 202 Adventurer 54 Explorer 0 Win Type - Total 11 Types 7/0/1/1/0/0/0/1/0/1 Lore% 77 Gallery% 65 Achievement% 60 Wizard Run 0 Options --------- Layout 1 ASCII 0 Keyboard 0 Movement Mouse Keybinds 1 Fullscreen 2 Font 32/Tamsyn Map View 50x35 Zoom Use 0% Tactical HUD 1 Map Filters NONE Filters NONE Steam 1 RUN: c3b67410-3a5e-4727-aaed-56aaca13246f